[Event "Titled Tuesday Blitz August 31 2021"]
[White "Pulpan, Jakub"]
[Black "Jobava, Baadur"]
[WhiteFideId "302759"]
[BlackFideId "13601520"]
[WhiteElo "2443"]
[BlackElo "2748"]
[Result "0-1"]
[Round "06"]
[TimeControl "180+1"]
[Date "2021.08.31"]
[WhiteClock "0:00:54"]
[BlackClock "0:01:49"]

1. Nc3 {[%clk 0:03:00]}  c6 {[%clk 0:03:00]} 2. e4 {[%clk 0:03:00]}  d5 {[%clk 0:03:01]} 3. d4 {[%clk 0:03:00]}  dxe4 {[%clk 0:03:01]} 4. Nxe4 {[%clk 0:03:01]}  Bf5 {[%clk 0:03:01]} 5. Ng3 {[%clk 0:03:00]}  Bg6 {[%clk 0:03:01]} 6. Nh3 {[%clk 0:03:01]}  e6 {[%clk 0:03:01]} 7. Bc4 {[%clk 0:02:56]}  Nf6 {[%clk 0:03:00]} 8. Nf4 {[%clk 0:02:55]}  Bd6 {[%clk 0:02:59]} 9. c3 {[%clk 0:02:55]}  Nbd7 {[%clk 0:02:53]} 10. h4 {[%clk 0:02:54]}  Nb6 {[%clk 0:02:49]} 11. Bb3 {[%clk 0:02:51]}  Qc7 {[%clk 0:02:48]} 12. Qf3 {[%clk 0:02:50]}  Nbd5 {[%clk 0:02:37]} 13. Nxd5 {[%clk 0:02:22]}  exd5 {[%clk 0:02:36]} 14. h5 {[%clk 0:02:22]}  Be4 {[%clk 0:02:36]} 15. Nxe4 {[%clk 0:02:22]}  Nxe4 {[%clk 0:02:35]} 16. h6 {[%clk 0:02:23]}  g6 {[%clk 0:02:34]} 17. Be3 {[%clk 0:02:18]}  O-O-O {[%clk 0:02:31]} 18. O-O-O {[%clk 0:02:17]}  f5 {[%clk 0:02:27]} 19. Kb1 {[%clk 0:02:14]}  Rhe8 {[%clk 0:02:26]} 20. c4 {[%clk 0:02:14]}  dxc4 {[%clk 0:02:24]} 21. Bxc4 {[%clk 0:02:15]}  Kb8 {[%clk 0:02:18]} 22. d5 {[%clk 0:02:14]}  c5 {[%clk 0:02:15]} 23. Bb5 {[%clk 0:02:12]}  Re7 {[%clk 0:02:14]} 24. g4 {[%clk 0:02:05]}  Qb6 {[%clk 0:02:12]} 25. Bd3 {[%clk 0:01:27]}  fxg4 {[%clk 0:02:05]} 26. Qxe4 {[%clk 0:01:22]}  Rxe4 {[%clk 0:02:05]} 27. Bxe4 {[%clk 0:01:22]}  g3 {[%clk 0:02:01]} 28. fxg3 {[%clk 0:01:17]}  Re8 {[%clk 0:02:01]} 29. Bxg6 {[%clk 0:01:13]}  Rxe3 {[%clk 0:01:57]} 30. Bxh7 {[%clk 0:01:13]}  Be5 {[%clk 0:01:56]} 31. Rh2 {[%clk 0:01:12]}  Rxg3 {[%clk 0:01:52]} 32. Be4 {[%clk 0:00:54]}  Rh3 {[%clk 0:01:49]} 0-1


[Site "https://www.chess.com"]

[Event "Titled Tuesday Blitz August 31 2021"]
[White "Quintiliano Pinto, Renato R."]
[Black "Kovalev, Vladislav"]
[WhiteFideId "2117568"]
[BlackFideId "13504398"]
[WhiteElo "2439"]
[BlackElo "2573"]
[Result "1/2-1/2"]
[Round "06"]
[TimeControl "180+1"]
[Date "2021.08.31"]
[WhiteClock "0:00:19"]
[BlackClock "0:00:13"]

1. d4 {[%clk 0:03:00]}  Nf6 {[%clk 0:03:00]} 2. c4 {[%clk 0:03:00]}  g6 {[%clk 0:03:00]} 3. Nc3 {[%clk 0:03:00]}  Bg7 {[%clk 0:03:00]} 4. e4 {[%clk 0:03:00]}  d6 {[%clk 0:03:01]} 5. Nf3 {[%clk 0:03:01]}  O-O {[%clk 0:03:00]} 6. Be2 {[%clk 0:03:01]}  e5 {[%clk 0:02:58]} 7. O-O {[%clk 0:03:01]}  c6 {[%clk 0:02:54]} 8. dxe5 {[%clk 0:02:55]}  dxe5 {[%clk 0:02:54]} 9. Nxe5 {[%clk 0:02:53]}  Nxe4 {[%clk 0:02:23]} 10. Nxe4 {[%clk 0:02:54]}  Bxe5 {[%clk 0:02:24]} 11. Bg5 {[%clk 0:02:54]}  Qxd1 {[%clk 0:02:21]} 12. Rfxd1 {[%clk 0:02:54]}  Kg7 {[%clk 0:01:46]} 13. Nd6 {[%clk 0:02:27]}  Na6 {[%clk 0:01:37]} 14. Be7 {[%clk 0:02:16]}  Rg8 {[%clk 0:01:34]} 15. Rab1 {[%clk 0:02:04]}  Nc7 {[%clk 0:01:10]} 16. c5 {[%clk 0:01:40]}  Nd5 {[%clk 0:01:08]} 17. Bh4 {[%clk 0:01:09]}  Rb8 {[%clk 0:00:45]} 18. Nxc8 {[%clk 0:01:05]}  Rbxc8 {[%clk 0:00:44]} 19. Bc4 {[%clk 0:01:05]}  Bf6 {[%clk 0:00:30]} 20. Bg3 {[%clk 0:00:48]}  Rcd8 {[%clk 0:00:25]} 21. Bd6 {[%clk 0:00:47]}  Ne7 {[%clk 0:00:21]} 22. g4 {[%clk 0:00:37]}  Nc8 {[%clk 0:00:17]} 23. Bc7 {[%clk 0:00:37]}  Rxd1+ {[%clk 0:00:12]} 24. Rxd1 {[%clk 0:00:38]}  Re8 {[%clk 0:00:12]} 25. Rd7 {[%clk 0:00:29]}  Re7 {[%clk 0:00:12]} 26. Rxe7 {[%clk 0:00:27]}  Nxe7 {[%clk 0:00:11]} 27. b3 {[%clk 0:00:25]}  Bd4 {[%clk 0:00:07]} 28. Bd6 {[%clk 0:00:23]}  Nc8 {[%clk 0:00:06]} 29. Kg2 {[%clk 0:00:20]}  Kf6 {[%clk 0:00:05]} 30. g5+ {[%clk 0:00:18]}  Kxg5 {[%clk 0:00:03]} 31. Bxf7 {[%clk 0:00:18]}  Kf6 {[%clk 0:00:04]} 32. Bg8 {[%clk 0:00:17]}  h6 {[%clk 0:00:03]} 33. Bf8 {[%clk 0:00:16]}  h5 {[%clk 0:00:02]} 34. Bc4 {[%clk 0:00:16]}  Ne7 {[%clk 0:00:01]} 35. Bxe7+ {[%clk 0:00:15]}  Kxe7 {[%clk 0:00:02]} 36. Kf3 {[%clk 0:00:15]}  Bxc5 {[%clk 0:00:03]} 37. h3 {[%clk 0:00:15]}  Kf6 {[%clk 0:00:03]} 38. a4 {[%clk 0:00:15]}  a5 {[%clk 0:00:02]} 39. Kg3 {[%clk 0:00:15]}  g5 {[%clk 0:00:03]} 40. Kf3 {[%clk 0:00:14]}  Bd6 {[%clk 0:00:04]} 41. Kg2 {[%clk 0:00:14]}  h4 {[%clk 0:00:04]} 42. Kf3 {[%clk 0:00:13]}  Ke5 {[%clk 0:00:05]} 43. Kg4 {[%clk 0:00:14]}  Bc5 {[%clk 0:00:05]} 44. Kxg5 {[%clk 0:00:14]}  Bxf2 {[%clk 0:00:06]} 45. Kg4 {[%clk 0:00:14]}  Kd4 {[%clk 0:00:07]} 46. Kf3 {[%clk 0:00:14]}  Kc5 {[%clk 0:00:07]} 47. Kxf2 {[%clk 0:00:14]}  b5 {[%clk 0:00:08]} 48. axb5 {[%clk 0:00:15]}  cxb5 {[%clk 0:00:09]} 49. Bf7 {[%clk 0:00:15]}  a4 {[%clk 0:00:06]} 50. bxa4 {[%clk 0:00:15]}  bxa4 {[%clk 0:00:07]} 51. Kf3 {[%clk 0:00:15]}  Kd6 {[%clk 0:00:08]} 52. Kg4 {[%clk 0:00:16]}  Ke7 {[%clk 0:00:09]} 53. Ba2 {[%clk 0:00:16]}  Kf6 {[%clk 0:00:09]} 54. Kxh4 {[%clk 0:00:16]}  Kg7 {[%clk 0:00:10]} 55. Kg5 {[%clk 0:00:16]}  a3 {[%clk 0:00:11]} 56. h4 {[%clk 0:00:17]}  Kh8 {[%clk 0:00:11]} 57. h5 {[%clk 0:00:17]}  Kg7 {[%clk 0:00:12]} 58. h6+ {[%clk 0:00:18]}  Kh8 {[%clk 0:00:13]} 59. Kg6 {[%clk 0:00:19]} 1/2-1/2


[Site "https://www.chess.com"]

[Event "Titled Tuesday Blitz August 31 2021"]
[White "Sargsyan, Anna M."]
[Black "Karas, Marek"]
[WhiteFideId "13308130"]
[BlackFideId "14928558"]
[WhiteElo "2263"]
[BlackElo "2264"]
[Result "1-0"]
[Round "06"]
[TimeControl "180+1"]
[Date "2021.08.31"]
[WhiteClock "0:02:00"]
[BlackClock "0:00:09"]

1. d4 {[%clk 0:03:00]}  Nf6 {[%clk 0:02:54]} 2. c4 {[%clk 0:02:58]}  g6 {[%clk 0:02:53]} 3. g3 {[%clk 0:02:58]}  Bg7 {[%clk 0:02:52]} 4. Bg2 {[%clk 0:02:58]}  O-O {[%clk 0:02:52]} 5. Nc3 {[%clk 0:02:58]}  c6 {[%clk 0:02:53]} 6. Nf3 {[%clk 0:02:59]}  d5 {[%clk 0:02:52]} 7. cxd5 {[%clk 0:02:59]}  cxd5 {[%clk 0:02:53]} 8. Ne5 {[%clk 0:03:00]}  e6 {[%clk 0:02:51]} 9. O-O {[%clk 0:02:59]}  Nfd7 {[%clk 0:02:49]} 10. Nxd7 {[%clk 0:02:59]}  Bxd7 {[%clk 0:02:47]} 11. Bf4 {[%clk 0:02:59]}  Nc6 {[%clk 0:02:47]} 12. e3 {[%clk 0:02:59]}  a6 {[%clk 0:02:44]} 13. Rc1 {[%clk 0:02:59]}  Qe7 {[%clk 0:02:44]} 14. Na4 {[%clk 0:02:58]}  g5 {[%clk 0:02:29]} 15. Bc7 {[%clk 0:02:59]}  Rac8 {[%clk 0:02:20]} 16. Bb6 {[%clk 0:02:58]}  Rfe8 {[%clk 0:02:13]} 17. Nc5 {[%clk 0:02:58]}  Rb8 {[%clk 0:02:06]} 18. g4 {[%clk 0:02:49]}  Rec8 {[%clk 0:02:04]} 19. a3 {[%clk 0:02:42]}  Be8 {[%clk 0:02:00]} 20. Qd2 {[%clk 0:02:36]}  h6 {[%clk 0:01:58]} 21. Rc2 {[%clk 0:02:29]}  Kh7 {[%clk 0:01:51]} 22. Rfc1 {[%clk 0:02:29]}  f6 {[%clk 0:01:49]} 23. e4 {[%clk 0:02:28]}  dxe4 {[%clk 0:01:46]} 24. Bxe4+ {[%clk 0:02:27]}  Bg6 {[%clk 0:01:43]} 25. Qd3 {[%clk 0:02:25]}  Bxe4 {[%clk 0:01:33]} 26. Qxe4+ {[%clk 0:02:25]}  Kg8 {[%clk 0:01:34]} 27. Qxe6+ {[%clk 0:02:21]}  Qxe6 {[%clk 0:01:28]} 28. Nxe6 {[%clk 0:02:22]}  Re8 {[%clk 0:01:26]} 29. d5 {[%clk 0:02:21]}  Ne5 {[%clk 0:01:26]} 30. Rc7 {[%clk 0:02:18]}  Bf8 {[%clk 0:01:20]} 31. Bc5 {[%clk 0:02:11]}  Bxc5 {[%clk 0:01:14]} 32. R1xc5 {[%clk 0:02:11]}  Kh8 {[%clk 0:01:00]} 33. h3 {[%clk 0:02:08]}  b6 {[%clk 0:00:53]} 34. Rc3 {[%clk 0:02:06]}  a5 {[%clk 0:00:49]} 35. Kg2 {[%clk 0:02:03]}  Ng6 {[%clk 0:00:22]} 36. Rf7 {[%clk 0:02:02]}  Nh4+ {[%clk 0:00:15]} 37. Kg3 {[%clk 0:02:01]}  b5 {[%clk 0:00:09]} 38. Rcc7 {[%clk 0:02:00]} 1-0


[Site "https://www.chess.com"]

[Event "Titled Tuesday Blitz August 31 2021"]
[White "Schmakel, Sam"]
[Black "Bacrot, Etienne"]
[WhiteFideId "2039311"]
[BlackFideId "605506"]
[WhiteElo "2356"]
[BlackElo "2673"]
[Result "1-0"]
[Round "06"]
[TimeControl "180+1"]
[Date "2021.08.31"]
[WhiteClock "0:00:06"]
[BlackClock "0:00:19"]

1. d4 {[%clk 0:02:59]}  d5 {[%clk 0:02:59]} 2. c4 {[%clk 0:02:59]}  e6 {[%clk 0:02:59]} 3. Nc3 {[%clk 0:02:59]}  Nf6 {[%clk 0:02:57]} 4. Nf3 {[%clk 0:02:58]}  Be7 {[%clk 0:02:56]} 5. Bf4 {[%clk 0:02:57]}  O-O {[%clk 0:02:55]} 6. Rc1 {[%clk 0:02:57]}  dxc4 {[%clk 0:02:50]} 7. e3 {[%clk 0:02:51]}  c5 {[%clk 0:02:42]} 8. Bxc4 {[%clk 0:02:47]}  cxd4 {[%clk 0:02:40]} 9. exd4 {[%clk 0:02:45]}  Nbd7 {[%clk 0:02:39]} 10. O-O {[%clk 0:02:36]}  Nb6 {[%clk 0:02:37]} 11. Bd3 {[%clk 0:02:37]}  Bd7 {[%clk 0:02:28]} 12. Ne5 {[%clk 0:02:32]}  Rc8 {[%clk 0:02:27]} 13. Bb1 {[%clk 0:02:23]}  Bc6 {[%clk 0:02:23]} 14. Qd3 {[%clk 0:02:05]}  g6 {[%clk 0:02:03]} 15. Bh6 {[%clk 0:01:46]}  Re8 {[%clk 0:02:00]} 16. Rfe1 {[%clk 0:01:34]}  Nbd5 {[%clk 0:01:54]} 17. Qh3 {[%clk 0:01:27]}  Nxc3 {[%clk 0:01:34]} 18. bxc3 {[%clk 0:01:26]}  Ba3 {[%clk 0:01:08]} 19. Bg5 {[%clk 0:01:14]}  Be7 {[%clk 0:00:57]} 20. Bxf6 {[%clk 0:00:33]}  Bxf6 {[%clk 0:00:56]} 21. Nxf7 {[%clk 0:00:34]}  Kxf7 {[%clk 0:00:39]} 22. Qxh7+ {[%clk 0:00:34]}  Kf8 {[%clk 0:00:39]} 23. Bxg6 {[%clk 0:00:27]}  Re7 {[%clk 0:00:36]} 24. Qh6+ {[%clk 0:00:26]}  Bg7 {[%clk 0:00:29]} 25. Qh3 {[%clk 0:00:24]}  Qd5 {[%clk 0:00:26]} 26. Rcd1 {[%clk 0:00:15]}  Be8 {[%clk 0:00:23]} 27. Be4 {[%clk 0:00:12]}  Qh5 {[%clk 0:00:21]} 28. Qg3 {[%clk 0:00:08]}  Bf6 {[%clk 0:00:20]} 29. Rd3 {[%clk 0:00:07]}  Rg7 {[%clk 0:00:20]} 30. Qf4 {[%clk 0:00:06]}  Qg5 {[%clk 0:00:19]} 31. Qd6+ {[%clk 0:00:03]}  Be7 {[%clk 0:00:19]} 32. Qxe6 {[%clk 0:00:04]}  Rd8 {[%clk 0:00:19]} 33. Rg3 {[%clk 0:00:03]}  Qf6 {[%clk 0:00:19]} 34. Rf3 {[%clk 0:00:03]}  Qxf3 {[%clk 0:00:18]} 35. Bxf3 {[%clk 0:00:04]}  Rd6 {[%clk 0:00:18]} 36. Qe5 {[%clk 0:00:04]}  Rf6 {[%clk 0:00:18]} 37. Kh1 {[%clk 0:00:04]}  Rxf3 {[%clk 0:00:17]} 38. gxf3 {[%clk 0:00:03]}  Bc6 {[%clk 0:00:18]} 39. Re4 {[%clk 0:00:03]}  Kg8 {[%clk 0:00:18]} 40. d5 {[%clk 0:00:03]}  Bd7 {[%clk 0:00:18]} 41. d6 {[%clk 0:00:04]}  Bf8 {[%clk 0:00:18]} 42. Qd5+ {[%clk 0:00:04]}  Kh7 {[%clk 0:00:18]} 43. Rh4+ {[%clk 0:00:04]}  Kg6 {[%clk 0:00:19]} 44. Qh5+ {[%clk 0:00:05]}  Kf6 {[%clk 0:00:19]} 45. Rf4+ {[%clk 0:00:05]}  Ke6 {[%clk 0:00:19]} 46. Rxf8 {[%clk 0:00:05]}  Bc6 {[%clk 0:00:20]} 47. Qh3+ {[%clk 0:00:05]}  Kxd6 {[%clk 0:00:19]} 48. Rf6+ {[%clk 0:00:05]}  Kc5 {[%clk 0:00:19]} 49. Rxc6+ {[%clk 0:00:06]}  bxc6 {[%clk 0:00:19]} 50. Qf5+ {[%clk 0:00:06]}  Kc4 {[%clk 0:00:19]} 51. Qf4+ {[%clk 0:00:06]}  Kb5 {[%clk 0:00:19]} 52. Qe5+ {[%clk 0:00:06]} 1-0


[Site "https://www.chess.com"]

[Event "Titled Tuesday Blitz August 31 2021"]
[White "Sjugirov, Sanan"]
[Black "Zhigalko, Sergei"]
[WhiteFideId "4189302"]
[BlackFideId "13502956"]
[WhiteElo "2472"]
[BlackElo "2662"]
[Result "0-1"]
[Round "06"]
[TimeControl "180+1"]
[Date "2021.08.31"]
[WhiteClock "0:00:01"]
[BlackClock "0:00:08"]

1. d4 {[%clk 0:03:00]}  Nf6 {[%clk 0:02:59]} 2. Bg5 {[%clk 0:02:58]}  e6 {[%clk 0:02:57]} 3. e4 {[%clk 0:02:57]}  h6 {[%clk 0:02:58]} 4. Bxf6 {[%clk 0:02:57]}  Qxf6 {[%clk 0:02:59]} 5. c3 {[%clk 0:02:57]}  d6 {[%clk 0:02:52]} 6. Bd3 {[%clk 0:02:56]}  g6 {[%clk 0:02:53]} 7. Ne2 {[%clk 0:02:55]}  Bg7 {[%clk 0:02:53]} 8. O-O {[%clk 0:02:55]}  Qe7 {[%clk 0:02:54]} 9. f4 {[%clk 0:02:53]}  O-O {[%clk 0:02:55]} 10. Nd2 {[%clk 0:02:49]}  Nd7 {[%clk 0:02:47]} 11. Nf3 {[%clk 0:02:23]}  b6 {[%clk 0:02:23]} 12. Qd2 {[%clk 0:02:20]}  Bb7 {[%clk 0:02:22]} 13. f5 {[%clk 0:02:06]}  e5 {[%clk 0:02:07]} 14. Rae1 {[%clk 0:01:53]}  Rae8 {[%clk 0:01:57]} 15. Ng3 {[%clk 0:01:44]}  Kh7 {[%clk 0:01:50]} 16. h4 {[%clk 0:01:08]}  Nf6 {[%clk 0:01:41]} 17. Bb5 {[%clk 0:00:58]}  c6 {[%clk 0:01:24]} 18. Ba4 {[%clk 0:00:56]}  b5 {[%clk 0:01:16]} 19. Bc2 {[%clk 0:00:50]}  c5 {[%clk 0:01:11]} 20. d5 {[%clk 0:00:46]}  c4 {[%clk 0:01:10]} 21. Nh2 {[%clk 0:00:37]}  Bc8 {[%clk 0:00:58]} 22. Bd1 {[%clk 0:00:37]}  a6 {[%clk 0:00:54]} 23. Kh1 {[%clk 0:00:25]}  Rg8 {[%clk 0:00:45]} 24. a4 {[%clk 0:00:25]}  Ref8 {[%clk 0:00:43]} 25. axb5 {[%clk 0:00:21]}  axb5 {[%clk 0:00:44]} 26. Bf3 {[%clk 0:00:18]}  Bh8 {[%clk 0:00:33]} 27. fxg6+ {[%clk 0:00:14]}  fxg6 {[%clk 0:00:33]} 28. Ra1 {[%clk 0:00:13]}  Bg7 {[%clk 0:00:19]} 29. Qe3 {[%clk 0:00:13]}  h5 {[%clk 0:00:16]} 30. Ra7 {[%clk 0:00:12]}  Bd7 {[%clk 0:00:16]} 31. Rfa1 {[%clk 0:00:09]}  Bh6 {[%clk 0:00:17]} 32. Qe1 {[%clk 0:00:07]}  Rf7 {[%clk 0:00:17]} 33. Ne2 {[%clk 0:00:05]}  Rgf8 {[%clk 0:00:12]} 34. Ng1 {[%clk 0:00:05]}  Qd8 {[%clk 0:00:09]} 35. Bd1 {[%clk 0:00:04]}  Ng4 {[%clk 0:00:09]} 36. Bxg4 {[%clk 0:00:03]}  hxg4 {[%clk 0:00:09]} 37. Ne2 {[%clk 0:00:03]}  Be3 {[%clk 0:00:09]} 38. Rb7 {[%clk 0:00:02]}  Bf2 {[%clk 0:00:10]} 39. Qd2 {[%clk 0:00:02]}  Qxh4 {[%clk 0:00:10]} 40. g3 {[%clk 0:00:01]}  Qh5 {[%clk 0:00:08]} 0-1


[Site "https://www.chess.com"]

[Event "Titled Tuesday Blitz August 31 2021"]
[White "Skliarov, Viktor"]
[Black "Najdin, Danil"]
[WhiteFideId "14106736"]
[BlackFideId "4172426"]
[WhiteElo "2281"]
[BlackElo "2193"]
[Result "1-0"]
[Round "06"]
[TimeControl "180+1"]
[Date "2021.08.31"]
[WhiteClock "0:00:06"]
[BlackClock "0:00:01"]

1. e4 {[%clk 0:03:00]}  e5 {[%clk 0:02:59]} 2. Nc3 {[%clk 0:03:00]}  Nf6 {[%clk 0:02:58]} 3. Bc4 {[%clk 0:03:00]}  Nxe4 {[%clk 0:02:56]} 4. Qh5 {[%clk 0:03:00]}  Nd6 {[%clk 0:02:53]} 5. Bb3 {[%clk 0:02:58]}  Nc6 {[%clk 0:02:52]} 6. Nb5 {[%clk 0:02:57]}  g6 {[%clk 0:02:49]} 7. Qf3 {[%clk 0:02:56]}  Qe7 {[%clk 0:02:30]} 8. Nxc7+ {[%clk 0:02:45]}  Kd8 {[%clk 0:02:30]} 9. Nxa8 {[%clk 0:02:41]}  b6 {[%clk 0:02:31]} 10. d3 {[%clk 0:02:23]}  Bb7 {[%clk 0:02:30]} 11. h4 {[%clk 0:02:21]}  Nd4 {[%clk 0:02:26]} 12. Qh3 {[%clk 0:02:15]}  Bxa8 {[%clk 0:02:20]} 13. Be3 {[%clk 0:02:07]}  N6f5 {[%clk 0:02:13]} 14. O-O-O {[%clk 0:01:59]}  Nxb3+ {[%clk 0:02:05]} 15. axb3 {[%clk 0:01:58]}  Bg7 {[%clk 0:01:40]} 16. Ne2 {[%clk 0:01:56]}  Kc7 {[%clk 0:01:28]} 17. Ng3 {[%clk 0:01:24]}  Nxe3 {[%clk 0:01:22]} 18. fxe3 {[%clk 0:01:24]}  f5 {[%clk 0:01:23]} 19. e4 {[%clk 0:01:17]}  f4 {[%clk 0:01:14]} 20. Ne2 {[%clk 0:01:15]}  Rc8 {[%clk 0:01:11]} 21. h5 {[%clk 0:01:07]}  g5 {[%clk 0:01:06]} 22. h6 {[%clk 0:01:07]}  Bf8 {[%clk 0:01:03]} 23. Qf5 {[%clk 0:00:49]}  Kb8 {[%clk 0:01:03]} 24. Nc3 {[%clk 0:00:48]}  Bc6 {[%clk 0:00:55]} 25. Rh5 {[%clk 0:00:45]}  b5 {[%clk 0:00:35]} 26. Qxg5 {[%clk 0:00:40]}  Qxg5 {[%clk 0:00:29]} 27. Rxg5 {[%clk 0:00:40]}  Bxh6 {[%clk 0:00:30]} 28. Rh5 {[%clk 0:00:39]}  Bf8 {[%clk 0:00:26]} 29. Rxe5 {[%clk 0:00:34]}  b4 {[%clk 0:00:21]} 30. Nd5 {[%clk 0:00:34]}  Bc5 {[%clk 0:00:18]} 31. Ne7 {[%clk 0:00:28]}  Be3+ {[%clk 0:00:17]} 32. Kb1 {[%clk 0:00:27]}  d6 {[%clk 0:00:12]} 33. Nxc6+ {[%clk 0:00:22]}  Rxc6 {[%clk 0:00:11]} 34. Re8+ {[%clk 0:00:20]}  Kb7 {[%clk 0:00:09]} 35. Re7+ {[%clk 0:00:21]}  Kb6 {[%clk 0:00:09]} 36. Rxh7 {[%clk 0:00:21]}  Rc5 {[%clk 0:00:10]} 37. Rg7 {[%clk 0:00:14]}  Rh5 {[%clk 0:00:09]} 38. Rf1 {[%clk 0:00:14]}  Rh2 {[%clk 0:00:08]} 39. Rg4 {[%clk 0:00:13]}  a5 {[%clk 0:00:08]} 40. c3 {[%clk 0:00:13]}  Kc6 {[%clk 0:00:07]} 41. Kc2 {[%clk 0:00:14]}  Rh5 {[%clk 0:00:06]} 42. Kd1 {[%clk 0:00:13]}  Rh3 {[%clk 0:00:06]} 43. Ke2 {[%clk 0:00:13]}  Rh2 {[%clk 0:00:06]} 44. Kf3 {[%clk 0:00:11]}  Rh5 {[%clk 0:00:06]} 45. Rxf4 {[%clk 0:00:11]}  Bxf4 {[%clk 0:00:06]} 46. Kxf4 {[%clk 0:00:11]}  bxc3 {[%clk 0:00:06]} 47. bxc3 {[%clk 0:00:11]}  Rb5 {[%clk 0:00:07]} 48. Rb1 {[%clk 0:00:10]}  Rc5 {[%clk 0:00:07]} 49. c4 {[%clk 0:00:10]}  Rh5 {[%clk 0:00:07]} 50. g4 {[%clk 0:00:10]}  Rh2 {[%clk 0:00:07]} 51. g5 {[%clk 0:00:09]}  Kc5 {[%clk 0:00:07]} 52. Rg1 {[%clk 0:00:07]}  Kd4 {[%clk 0:00:05]} 53. g6 {[%clk 0:00:07]}  Rf2+ {[%clk 0:00:05]} 54. Kg5 {[%clk 0:00:06]}  Rf8 {[%clk 0:00:05]} 55. g7 {[%clk 0:00:06]}  Rb8 {[%clk 0:00:02]} 56. Rg3 {[%clk 0:00:05]}  Kc3 {[%clk 0:00:01]} 57. Kf6 {[%clk 0:00:05]}  Kxb3 {[%clk 0:00:02]} 58. Kf7 {[%clk 0:00:06]}  a4 {[%clk 0:00:01]} 59. g8=Q {[%clk 0:00:06]}  Rxg8 {[%clk 0:00:01]} 60. Kxg8 {[%clk 0:00:06]}  a3 {[%clk 0:00:02]} 61. d4+ {[%clk 0:00:06]}  Kxc4 {[%clk 0:00:01]} 62. Rxa3 {[%clk 0:00:06]}  Kxd4 {[%clk 0:00:01]} 63. Ra6 {[%clk 0:00:06]} 1-0


[Site "https://www.chess.com"]

[Event "Titled Tuesday Blitz August 31 2021"]
[White "Sokolin, Leonid"]
[Black "Papasimakopoulos, Alexandros"]
[WhiteFideId "2009161"]
[BlackFideId "4244125"]
[WhiteElo "2394"]
[BlackElo "2352"]
[Result "0-1"]
[Round "06"]
[TimeControl "180+1"]
[Date "2021.08.31"]
[WhiteClock "0:00:14"]
[BlackClock "0:00:28"]

1. e4 {[%clk 0:02:26]}  e6 {[%clk 0:02:48]} 2. d4 {[%clk 0:02:25]}  d5 {[%clk 0:02:47]} 3. Nd2 {[%clk 0:02:25]}  Nf6 {[%clk 0:02:47]} 4. e5 {[%clk 0:02:25]}  Nfd7 {[%clk 0:02:48]} 5. Bd3 {[%clk 0:02:25]}  c5 {[%clk 0:02:49]} 6. c3 {[%clk 0:02:26]}  Nc6 {[%clk 0:02:49]} 7. Ne2 {[%clk 0:02:26]}  cxd4 {[%clk 0:02:50]} 8. cxd4 {[%clk 0:02:26]}  f6 {[%clk 0:02:51]} 9. Nf4 {[%clk 0:02:26]}  Nxd4 {[%clk 0:02:51]} 10. Qh5+ {[%clk 0:02:25]}  Ke7 {[%clk 0:02:50]} 11. Ng6+ {[%clk 0:02:26]}  hxg6 {[%clk 0:02:50]} 12. exf6+ {[%clk 0:02:26]}  Nxf6 {[%clk 0:02:51]} 13. Qxh8 {[%clk 0:02:26]}  Kf7 {[%clk 0:02:52]} 14. O-O {[%clk 0:02:26]}  e5 {[%clk 0:02:52]} 15. Nb3 {[%clk 0:02:26]}  Nxb3 {[%clk 0:02:52]} 16. axb3 {[%clk 0:02:26]}  Bf5 {[%clk 0:02:52]} 17. Bxf5 {[%clk 0:02:25]}  gxf5 {[%clk 0:02:53]} 18. Qh3 {[%clk 0:02:21]}  g6 {[%clk 0:02:49]} 19. Bg5 {[%clk 0:02:20]}  Be7 {[%clk 0:02:46]} 20. Rfd1 {[%clk 0:02:12]}  d4 {[%clk 0:02:43]} 21. Rac1 {[%clk 0:02:09]}  Qd6 {[%clk 0:02:37]} 22. Qd3 {[%clk 0:01:58]}  Rd8 {[%clk 0:02:09]} 23. Qc4+ {[%clk 0:01:56]}  Kg7 {[%clk 0:02:05]} 24. Qc7 {[%clk 0:01:46]}  Rd7 {[%clk 0:02:02]} 25. Qxd6 {[%clk 0:01:43]}  Bxd6 {[%clk 0:02:03]} 26. f3 {[%clk 0:01:41]}  Kf7 {[%clk 0:01:57]} 27. h4 {[%clk 0:01:34]}  Nd5 {[%clk 0:01:52]} 28. Kf1 {[%clk 0:01:26]}  Be7 {[%clk 0:01:44]} 29. Ke2 {[%clk 0:01:13]}  Bxg5 {[%clk 0:01:34]} 30. hxg5 {[%clk 0:01:13]}  Ke6 {[%clk 0:01:34]} 31. Rc8 {[%clk 0:01:10]}  Nf4+ {[%clk 0:01:19]} 32. Kf2 {[%clk 0:01:09]}  e4 {[%clk 0:01:16]} 33. fxe4 {[%clk 0:00:55]}  fxe4 {[%clk 0:01:16]} 34. Rf8 {[%clk 0:00:50]}  Ke5 {[%clk 0:01:04]} 35. g3 {[%clk 0:00:34]}  Nh3+ {[%clk 0:01:00]} 36. Ke2 {[%clk 0:00:31]}  Nxg5 {[%clk 0:01:01]} 37. Rc1 {[%clk 0:00:29]}  Ne6 {[%clk 0:00:52]} 38. Re8 {[%clk 0:00:27]}  Rh7 {[%clk 0:00:45]} 39. Rc5+ {[%clk 0:00:22]}  Kd6 {[%clk 0:00:44]} 40. Rb5 {[%clk 0:00:21]}  Rh2+ {[%clk 0:00:36]} 41. Kd1 {[%clk 0:00:21]}  e3 {[%clk 0:00:29]} 42. Rxb7 {[%clk 0:00:16]}  d3 {[%clk 0:00:28]} 43. Rxe6+ {[%clk 0:00:14]}  Kxe6 {[%clk 0:00:28]} 0-1


[Site "https://www.chess.com"]